[Event "FIJ Cannes 2024"]
[Site "Cannes"]
[Date "2024.02.22"]
[Round "5.2"]
[White "Bharath Subramaniyam H"]
[Black "Roux, Baptiste"]
[Result "1/2-1/2"]
[ECO "D02"]
[WhiteElo "2515"]
[BlackElo "2331"]
[Annotator "TA"]
[PlyCount "136"]
[EventDate "2024.02.20"]
[EventType "swiss"]
[EventCountry "FRA"]
[SourceTitle "playchess.com"]
[Source "ChessBase"]
[SourceQuality "1"]
[TimeControl "40/5400+30:1800+30"]

{[%evp 45,136,80,69,64,113,93,88,23,15,33,50,50,46,46,60,57,53,45,45,20,21,8,8,20,64,77,52,67,77,0,0,-72,8,8,35,27,34,31,72,0,0,0,0,0,0,0,0,0,15,0,15,15,15,14,19,19,19,19,19,19,19,19,19,12,19,19,22,0,19,19,22,20,20,8,20,20,20,19,19,0,19,0,8,0,0,0,0,0,0,0,0,0,0]} 1. d4 {[%emt 0:00:38]} d5 {[%emt 0:00:04]} 2. Bf4 {[%emt 0:01:48]} Nf6 {[%emt 0:00:15]} 3. e3 {[%emt 0:00:15]} e6 {[%emt 0:00:30]} 4. Nf3 {[%emt 0:00:08]} Bd6 {[%emt 0:01:13]} 5. Ne5 {[%emt 0:00:13]} O-O {[%emt 0:05:12]} 6. Nd2 {[%emt 0:00:13]} c5 {[%emt 0:01:48]} 7. c3 {[%emt 0:00:22] D02: 1 d4 d5 2 Nf3 sidelines, including 2...Nf6 3 g3 and 2...Nf6 3 Bf4.} Qc7 {[%emt 0:01:56]} 8. Bd3 {[%emt 0:00:56]} Nfd7 {[%emt 0:06:42]} 9. Ndf3 {[%emt 0:12:02]} f6 {[%emt 0:07:27]} 10. Nxd7 {[%emt 0:05:44]} Nxd7 {[%emt 0:03:18]} 11. Bxd6 {[%emt 0:09:19]} Qxd6 {[%emt 0:00:07]} 12. O-O {[%emt 0:00:36]} c4 {[%emt 0:04:22]} 13. Bc2 {[%emt 0:14:42]} b5 {[%emt 0:00:04]} 14. e4 {[%emt 0:02:12]} Bb7 {[%emt 0:03:36]} 15. Re1 $146 {[%emt 0:02:19]} ({Predecessor:} 15. Qe2 dxe4 16. Bxe4 Bxe4 17. Qxe4 Qd5 18. Rfe1 Qxe4 19. Rxe4 Kf7 20. Rae1 Rfe8 21. Nd2 {0-1 Crevatin,L (2319)-Kashtanov,R (2376) Titled Tuesday intern op 06th Dec Early blitz 2022 (7)}) 15... dxe4 {[%emt 0:01:53]} 16. Bxe4 {[%emt 0:00:16]} Bxe4 {[%emt 0:04:59]} 17. Rxe4 {[%emt 0:00:10]} Rfe8 {[%emt 0:05:15]} 18. Qe2 {[%emt 0:04:21]} Qd5 {[%emt 0:00:36]} 19. Re1 {[%emt 0:07:33]} Nf8 {[%emt 0:00:41]} 20. h4 {[%emt 0:05:03]} a5 {[%emt 0:01:08]} 21. Nd2 {[%emt 0:04:16]} Rac8 {[%emt 0:02:09]} 22. h5 {[%emt 0:02:29]} Rc6 {[%emt 0:05:31]} 23. h6 {[%emt 0:06:31]} Ng6 {[%emt 0:07:49]} 24. Qf3 {[%emt 0:04:55]} Kf7 {[%emt 0:04:30]} (24... Re7 $14 {is superior.}) 25. hxg7 {[%emt 0:03:06]} (25. Qh3 {is interesting.} Qg5 26. d5 Rd6 27. dxe6+ Rdxe6 28. Rxe6 Nf4 29. Qf3) 25... Rg8 {[%emt 0:02:35]} 26. R4e3 {[%emt 0:06:11]} ({Don't take} 26. a4 bxa4 27. R4e3 Qxf3 28. Rxf3 Rb8) ({White should play} 26. Qh3 $16) 26... Qxf3 $1 $11 {[%emt 0:01:10]} 27. Rxf3 {[%emt 0:00:07]} (27. Nxf3 {feels hotter.} Nf4 28. d5 Nxd5 29. Nd4) 27... Kxg7 {[%emt 0:05:34]} 28. Ne4 {[%emt 0:00:44]} Rf8 {[%emt 0:00:22]} 29. Ng3 {[%emt 0:00:28]} Kf7 {[%emt 0:07:36]} 30. Nh5 {[%emt 0:02:21]} Ke7 {[%emt 0:00:08]} 31. Rfe3 {[%emt 0:01:32]} Kd7 {[%emt 0:00:37]} 32. Ng7 {[%emt 0:02:09]} Nf4 {[%emt 0:00:31]} 33. Re4 {[%emt 0:00:29]} Nd3 {[%emt 0:07:25]} 34. Nxe6 {[%emt 0:00:30]} Rxe6 {[%emt 0:00:14]} 35. Rxe6 {[%emt 0:00:05]} Nxe1 {[%emt 0:00:03]} 36. Rxe1 {[%emt 0:00:09]} b4 {[%emt 0:00:40] [#]} 37. Re3 {[%emt 0:04:08]} (37. Rc1 $1 $16 {aiming for cxb4.} Rb8 38. cxb4 Rxb4 39. Rc2) 37... Rb8 $11 {[%emt 0:00:20]} 38. Rh3 {[%emt 0:00:00] [#]} (38. Kf1 $11) 38... bxc3 {[%emt 0:00:43]} (38... a4 $1 $17 {[%cal Ra4a3] Threatens to win with ...a3.} 39. cxb4 (39. Rxh7+ Kd6 $11) 39... Rxb4) 39. Rxh7+ {[%emt 0:00:00]} Kd6 {[%emt 0:00:17]} 40. bxc3 {[%emt 0:00:00]} Rb1+ $1 {[%emt 0:00:12]} 41. Kh2 {[%emt 0:29:40]} Rc1 {[%emt 0:34:56]} 42. Rf7 {[%emt 0:00:00]} (42. Rh3 $16) 42... Ke6 $11 {[%emt 0:00:00]} 43. Ra7 {[%emt 0:00:00]} Rxc3 {[%emt 0:00:00]} 44. Rxa5 {[%emt 0:00:00]} Rd3 {[%emt 0:00:00]} 45. Rc5 {[%emt 0:00:00]} Rxd4 {[%emt 0:00:00]} 46. Kg3 {[%emt 0:00:00]} Rd3+ {[%emt 0:00:00]} 47. f3 {[%emt 0:05:20]} Ra3 {[%emt 0:00:00]} 48. Rxc4 {[%emt 0:00:00]} Rxa2 {[%emt 0:00:00]} 49. Kh3 {[%emt 0:00:00]} Kf7 {[%emt 0:10:32]} 50. g4 {[%emt 0:00:00]} Ra3 {[%emt 0:00:00]} 51. Kg3 {[%emt 0:00:00]} Kg6 {[%emt 0:00:00]} 52. Rc5 {[%emt 0:00:00]} Rb3 {[%emt 0:00:00]} 53. Rd5 {[%emt 0:00:00]} Ra3 {[%emt 0:00:00]} 54. Kf4 {[%emt 0:00:00]} Ra1 {[%emt 0:00:00]} 55. Rd4 {[%emt 0:00:00]} Rg1 {[%emt 0:00:00]} 56. Rd5 {[%emt 0:00:00]} Ra1 {[%emt 0:00:00]} 57. Rd3 {[%emt 0:00:00]} Rg1 {[%emt 0:00:00]} 58. Rb3 {[%emt 0:00:00]} Rg2 {[%emt 0:00:00]} 59. Ke4 {[%emt 0:00:00]} Kg5 {[%emt 0:00:00]} 60. Rb5+ {[%emt 0:00:00]} Kg6 {[%emt 0:00:00]} 61. Rf5 {[%emt 0:00:00]} Re2+ {[%emt 0:00:00]} 62. Kd5 {[%emt 0:00:00]} Re3 {[%emt 0:00:00]} 63. Kd6 {[%emt 0:00:00]} Kg7 {[%emt 0:00:00]} 64. Kd7 {[%emt 0:00:00]} Kg6 {[%emt 0:00:00]} 65. f4 {[%emt 0:00:00]} Rg3 {[%emt 0:00:00]} 66. Ke6 {[%emt 0:00:35]} Re3+ {[%emt 0:00:00]} 67. Kd7 {[%emt 0:00:06]} Rg3 {[%emt 0:00:00]} 68. Ke6 {[%emt 0:00:05]} Re3+ {[%emt 0:00:00]} 1/2-1/2

[Event "FIJ Cannes 2024"]
[Site "Cannes"]
[Date "2024.02.22"]
[Round "5.3"]
[White "Xiang, Zeyu"]
[Black "Can, Isik"]
[Result "1/2-1/2"]
[ECO "E10"]
[WhiteElo "2407"]
[BlackElo "2500"]
[Annotator "TA"]
[PlyCount "71"]
[EventDate "2024.02.20"]
[EventType "swiss"]
[EventCountry "FRA"]
[SourceTitle "playchess.com"]
[Source "ChessBase"]
[SourceQuality "1"]
[TimeControl "40/5400+30:1800+30"]

{[%evp 10,71,28,33,33,8,15,27,37,35,48,0,31,37,52,18,50,26,137,54,52,92,92,53,100,101,98,123,103,0,0,-9,126,122,103,108,146,102,94,91,102,99,109,90,97,114,94,42,42,46,37,27,14,11,35,0,0,0,0,0,0,0,0,0]} 1. d4 {[%emt 0:00:06]} Nf6 {[%emt 0:02:22]} 2. c4 {[%emt 0:00:08]} e6 {[%emt 0:00:03]} 3. Nf3 {[%emt 0:00:06]} c5 {[%emt 0:00:03]} 4. d5 {[%emt 0:00:15]} b5 {[%emt 0:00:08]} 5. dxe6 {[%emt 0:01:34]} fxe6 {[%emt 0:00:09]} 6. cxb5 {[%emt 0:00:03]} a6 {[%emt 0:00:08]} 7. Nc3 {[%emt 0:06:54]} axb5 {[%emt 0:01:39]} 8. Nxb5 {[%emt 0:00:10][%cal Oe2e4]} Ba6 {[%emt 0:00:05] White has an edge.} 9. Nc3 {[%emt 0:16:51]} d5 {[%emt 0:02:41][%cal Bd7d5,Bd5d4][%mdl 32]} 10. Bg5 {[%emt 0:00:52]} (10. e4 $1 $14) 10... Nc6 {[%emt 0:25:14] [#]} 11. e4 $1 {[%emt 0:12:01] Strongly threatening Bxa6.} Bxf1 {[%emt 0:03:31]} 12. Kxf1 {[%emt 0:00:06]} d4 {[%emt 0:01:31]} 13. Nb5 {[%emt 0:04:17]} Qb6 {[%emt 0:15:34]} (13... Be7 $11) 14. a4 {[%emt 0:05:32]} ({White should play} 14. Qb3 $16 {[%cal Ob5d6] Hoping for Nd6+!} Nb4 (14... Nxe4 $2 15. Nd6+ Bxd6 16. Qxb6 $18) 15. a4) 14... Be7 $14 {[%emt 0:05:12]} 15. Bxf6 {[%emt 0:03:01]} gxf6 {[%emt 0:01:55]} 16. g3 {[%emt 0:01:19]} f5 {[%emt 0:09:16]} (16... O-O $14 {is more appropriate.}) 17. exf5 {[%emt 0:03:47][%cal Of3g5] [#] Threatens to win with Ng5!} O-O {[%emt 0:01:47]} 18. Qe2 {[%emt 0:02:34]} Nb4 {[%emt 0:01:04]} 19. Kg2 {[%emt 0:01:30]} (19. Qxe6+ Qxe6 20. fxe6 Rxf3 $19) (19. fxe6 $2 {perishes.} Qc6 (19... d3 $2 20. Qe4 $18) 20. Kg2 d3 $19) (19. Qe4 $16) 19... Rxf5 $11 {[%emt 0:00:24] And now ...Raf8 would win.} 20. Nd2 {[%emt 0:00:52]} Bg5 {[%emt 0:08:46]} (20... Qc6+ $11 21. Kg1 d3 22. Qg4+ Kh8) 21. Nc4 {[%emt 0:13:12] Excellent horsemanship.} Qc6+ {[%emt 0:00:44]} 22. f3 {[%emt 0:00:18]} Nd5 {[%emt 0:13:15][%cal Of5f3]} 23. Rhf1 {[%emt 0:15:07]} Ne3+ {[%emt 0:00:39]} 24. Nxe3 {[%emt 0:00:05]} Bxe3 {[%emt 0:00:19]} 25. b3 {[%emt 0:09:24]} c4 {[%emt 0:01:11]} 26. Qxc4 {[%emt 0:02:40]} Qxc4 {[%emt 0:00:04]} 27. bxc4 {[%emt 0:00:04]} Rc5 {[%emt 0:00:01]} 28. f4 {[%emt 0:00:52]} ({Better is} 28. Nd6 $16) 28... Rxc4 $14 {[%emt 0:00:33]} 29. Kf3 {[%emt 0:00:22]} Rcxa4 {[%emt 0:01:22]} 30. Rxa4 {[%emt 0:00:36]} Rxa4 {[%emt 0:00:00][%mdl 4096] Endgame. KRB-KRN} 31. Ke4 {[%emt 0:00:48]} Ra2 {[%emt 0:01:37]} 32. Nxd4 {[%emt 0:00:23]} Bxd4 {[%emt 0:00:05] The position is equal.} 33. Kxd4 {[%emt 0:00:04]} Rxh2 {[%emt 0:00:04]} 34. Ra1 {[%emt 0:00:27]} Kf7 {[%emt 0:00:55]} 35. g4 {[%emt 0:00:39]} h6 {[%emt 0:00:49]} 36. Ke4 {[%emt 0:01:18] Weighted Error Value: White=0.20 (precise) /Black=0.21 (precise) .  Mistake:       	White=4     	Black=3      Inaccurate:     	White=4     	Black=2      OK:         	White=3     	Black=12     Best:        	White=2     	Black=4} 1/2-1/2

[Event "FIJ Cannes 2024"]
[Site "Cannes"]
[Date "2024.02.22"]
[Round "5.4"]
[White "Chen, Qi b"]
[Black "Garifullina, Leya"]
[Result "1/2-1/2"]
[ECO "B23"]
[WhiteElo "2467"]
[BlackElo "2422"]
[Annotator "TA"]
[PlyCount "59"]
[EventDate "2024.02.20"]
[EventType "swiss"]
[EventCountry "FRA"]
[SourceTitle "playchess.com"]
[Source "ChessBase"]
[SourceQuality "1"]
[TimeControl "40/5400+30:1800+30"]

{[%evp 9,59,12,5,0,0,0,0,0,-12,-12,0,-2,47,49,43,30,57,25,39,16,42,42,43,31,32,23,31,26,33,27,36,33,48,34,24,28,19,27,22,19,41,33,38,13,45,47,43,51,50,50,47,27]} 1. e4 {[%emt 1:31:00]} c5 {[%emt 1:31:00]} 2. Nc3 {[%emt 0:00:30]} d6 {[%emt 0:00:30]} 3. d4 {[%emt 0:00:30]} cxd4 {[%emt 0:00:30]} 4. Qxd4 {[%emt 0:00:30]} Nc6 {[%emt 0:00:30]} 5. Bb5 {[%emt 0:00:30]} Bd7 {[%emt 0:00:30]} 6. Bxc6 {[%emt 0:00:30]} Bxc6 {[%emt 0:00:30]} 7. Nge2 {[%emt 0:00:30]} e6 {[%emt 0:00:30]} 8. b3 {[%emt 0:00:30] The position is equal.} Nf6 {[%emt 0:00:30]} 9. Bb2 {[%emt 0:00:30]} Qa5 {[%emt 0:00:30]} 10. O-O-O {[%emt 0:00:30]} O-O-O {[%emt 0:00:30]} (10... Qc5 $11 {is superior.}) 11. Kb1 $14 {[%emt 0:00:30]} Be7 {[%emt 0:00:30]} 12. f3 {[%emt 0:00:30]} h5 {[%emt 0:00:30]} 13. Qd2 {[%emt 0:00:30][%cal Oc3d5]} Kb8 {[%emt 0:00:30]} 14. h4 {[%emt 0:00:30]} Qb6 {[%emt 0:00:30]} 15. Qe1 {[%emt 0:00:30]} Rhg8 {[%emt 0:00:30]} 16. Qg3 {[%emt 0:00:30]} Ka8 {[%emt 0:00:30]} 17. Nf4 {[%emt 0:00:30]} Qa5 {[%emt 0:00:30]} 18. Nce2 {[%emt 0:00:30]} g6 {[%emt 0:00:30]} 19. Nh3 {[%emt 0:00:30]} Nh7 {[%emt 0:00:30]} 20. Qf4 {[%emt 0:00:30]} f6 {[%emt 0:00:30][%cal Bf7f6,Bf6f5,Bf5f4][%mdl 32]} 21. Qe3 {[%emt 0:00:30]} e5 {[%emt 0:00:30] Prevents Nhf4.} 22. Nc3 {[%emt 0:00:30]} f5 {[%emt 0:00:30]} 23. Nd5 {[%emt 0:00:30]} Bxd5 {[%emt 0:00:30]} 24. Rxd5 {[%emt 0:00:30]} Qc7 {[%emt 0:00:30]} 25. Nf2 {[%emt 0:00:30]} Nf6 {[%emt 0:00:30]} 26. Rd2 {[%emt 0:00:30]} f4 {[%emt 0:00:30]} 27. Qe2 {[%emt 0:00:30] White is slightly better.} g5 {[%emt 0:00:30]} 28. hxg5 {[%emt 0:00:30]} Rxg5 {[%emt 0:00:30]} 29. Nd3 {[%emt 0:00:30]} Rdg8 {[%emt 0:00:30]} 30. Ne1 {[%emt 0:00:30] Weighted Error Value: White=0.07 (flawless) /Black=0.10 (very precise) .  Mistake:       	---       	Black=1      Inaccurate:     	White=1     	Black=3      OK:         	White=7     	Black=9      Best:        	White=1     	---} 1/2-1/2

[Event "FIJ Cannes 2024"]
[Site "Cannes"]
[Date "2024.02.22"]
[Round "5.5"]
[White "Chapon, Jean-Alexis"]
[Black "Krylov, Philippe"]
[Result "1-0"]
[ECO "D11"]
[WhiteElo "2039"]
[BlackElo "1900"]
[Annotator "ChessBase"]
[PlyCount "67"]
[EventDate "2024.02.20"]
[EventType "swiss"]
[EventCountry "FRA"]
[SourceTitle "playchess.com"]
[Source "ChessBase"]
[SourceQuality "1"]
[TimeControl "40/5400+30:1800+30"]

1. Nf3 {[%emt 1:31:00]} d5 {[%emt 1:31:00]} 2. d4 {[%emt 0:00:30]} Nf6 {[%emt 0:00:30]} 3. c4 {[%emt 0:00:30]} c6 {[%emt 0:00:30]} 4. g3 {[%emt 0:00:30]} Bf5 {[%emt 0:00:30]} 5. Bg2 {[%emt 0:00:30]} e6 {[%emt 0:00:30]} 6. O-O {[%emt 0:00:30]} Nbd7 {[%emt 0:00:30]} 7. Nc3 {[%emt 0:00:30]} h6 {[%emt 0:00:30]} 8. b3 {[%emt 0:00:30]} Bd6 {[%emt 0:00:30]} 9. Bb2 {[%emt 0:00:30]} O-O {[%emt 0:00:30]} 10. Nd2 {[%emt 0:00:30]} Be7 {[%emt 0:00:30]} 11. e4 {[%emt 0:00:30]} dxe4 {[%emt 0:00:30]} 12. Ncxe4 {[%emt 0:00:30]} Nxe4 {[%emt 0:00:30]} 13. Nxe4 {[%emt 0:00:30]} Nf6 {[%emt 0:00:30]} 14. f3 {[%emt 0:00:30]} Qc7 {[%emt 0:00:30]} 15. Qe2 {[%emt 0:00:30]} Rfd8 {[%emt 0:00:30]} 16. Rfd1 {[%emt 0:00:30]} a5 {[%emt 0:00:30]} 17. Bc3 {[%emt 0:00:30]} b5 {[%emt 0:00:30]} 18. Rac1 {[%emt 0:00:30]} Qb6 {[%emt 0:00:30]} 19. Kh1 {[%emt 0:00:30]} Rac8 {[%emt 0:00:30]} 20. Qe1 {[%emt 0:00:30]} b4 {[%emt 0:00:30]} 21. Bb2 {[%emt 0:00:30]} Bxe4 {[%emt 0:00:30]} 22. fxe4 {[%emt 0:00:30]} Ra8 {[%emt 0:00:30]} 23. e5 {[%emt 0:00:30]} Ne8 {[%emt 0:00:30]} 24. d5 {[%emt 0:00:30]} cxd5 {[%emt 0:00:30]} 25. cxd5 {[%emt 0:00:30]} exd5 {[%emt 0:00:30]} 26. Bxd5 {[%emt 0:00:30]} Rac8 {[%emt 0:00:30]} 27. Rxc8 {[%emt 0:00:30]} Rxc8 {[%emt 0:00:30]} 28. Qe4 {[%emt 0:00:30]} Nc7 {[%emt 0:00:30]} 29. Bxf7+ {[%emt 0:00:30]} Kh8 {[%emt 0:00:30]} 30. Bc4 {[%emt 0:00:30]} Rf8 {[%emt 0:00:30]} 31. Bd3 {[%emt 0:00:30]} g6 {[%emt 0:00:30]} 32. e6+ {[%emt 0:00:30]} Bf6 {[%emt 0:00:30]} 33. Qxg6 {[%emt 0:00:30]} Qb7+ {[%emt 0:00:30]} 34. Be4 {[%emt 0:00:30]} 1-0

[Event "FIJ Cannes 2024"]
[Site "Cannes"]
[Date "2024.02.22"]
[Round "5.6"]
[White "Frison, Jacques"]
[Black "Roberts, Tallulah"]
[Result "1/2-1/2"]
[ECO "C78"]
[WhiteElo "1340"]
[BlackElo "1488"]
[Annotator "NA RC"]
[PlyCount "124"]
[EventDate "2024.02.20"]
[EventType "swiss"]
[EventCountry "FRA"]
[SourceTitle "playchess.com"]
[Source "ChessBase"]
[SourceQuality "1"]
[TimeControl "40/5400+30:1800+30"]

1. e4 {[%emt 0:00:02]} e5 {[%emt 0:01:21]} 2. Nf3 {[%emt 0:00:05]} Nc6 {[%emt 0:00:45]} 3. Bb5 {[%emt 0:00:06]} a6 {[%emt 0:00:41]} 4. Ba4 {[%emt 0:00:01]} Nf6 {[%emt 0:00:35]} 5. d3 {[%emt 0:00:07]} b5 {[%emt 0:00:55]} 6. Bb3 {[%emt 0:00:04]} Bc5 {[%emt 0:01:07]} 7. c3 {[%emt 0:01:20]} d6 {[%emt 0:01:40]} 8. O-O {[%emt 0:01:26]} O-O {[%emt 0:04:28]} 9. Re1 {[%emt 0:02:30]} h6 {[%emt 0:01:39]} 10. Nbd2 {[%emt 0:07:59]} Be6 {[%emt 0:10:45]} 11. Bxe6 {[%emt 0:00:48]} fxe6 {[%emt 0:00:24]} 12. a4 {[%emt 0:04:10]} b4 {[%emt 0:03:03]} 13. a5 {[%emt 0:02:38]} bxc3 {[%emt 0:00:53]} 14. bxc3 {[%emt 0:00:07]} Rb8 {[%emt 0:01:10]} 15. Qa4 {[%emt 0:15:19]} Qd7 {[%emt 0:02:57]} 16. Nc4 {[%emt 0:08:35]} Rb5 {[%emt 0:25:38]} 17. Ra2 {[%emt 0:14:37]} Nh5 {[%emt 0:12:44]} 18. Qd1 {[%emt 0:04:16]} Nf4 {[%emt 0:02:10]} 19. g3 {[%emt 0:02:37]} Ng6 {[%emt 0:03:09]} 20. Kg2 {[%emt 0:03:02]} Qf7 {[%emt 0:03:38]} 21. Be3 {[%emt 0:13:38]} Bxe3 {[%emt 0:00:47]} 22. Rxe3 {[%emt 0:01:01]} Rfb8 {[%emt 0:02:29]} 23. Ree2 {[%emt 0:01:38]} Qf6 {[%emt 0:07:27]} 24. Reb2 {[%emt 0:01:16]} Rxb2 {[%emt 0:01:05]} 25. Rxb2 {[%emt 0:00:05]} Rxb2 {[%emt 0:00:17]} 26. Nxb2 {[%emt 0:00:07]} d5 {[%emt 0:01:23]} 27. Qa4 {[%emt 0:02:02]} Nge7 {[%emt 0:01:07]} 28. Nd1 {[%emt 0:03:20]} Qf8 {[%emt 0:00:44]} 29. Ne3 {[%emt 0:00:55]} Qd8 {[%emt 0:01:25]} 30. Qa2 {[%emt 0:01:29]} Kh8 {[%emt 0:01:39]} 31. Ng4 {[%emt 0:01:03]} dxe4 {[%emt 0:01:29]} 32. Nfxe5 {[%emt 0:01:59]} Nxe5 {[%emt 0:00:58]} 33. Nxe5 {[%emt 0:08:38]} Qd5 {[%emt 0:00:24]} 34. Qxd5 {[%emt 0:00:00]} exd5 {[%emt 0:00:16]} 35. dxe4 {[%emt 0:00:00]} dxe4 {[%emt 0:00:12]} 36. Nd7 {[%emt 0:00:00]} Nc6 {[%emt 0:00:40]} 37. Nc5 {[%emt 0:00:00]} Nxa5 {[%emt 0:00:22]} 38. Nxa6 {[%emt 0:00:00]} c6 {[%emt 0:00:33]} 39. Nc5 {[%emt 0:00:00]} Nc4 {[%emt 0:00:41]} 40. Nxe4 {[%emt 0:00:00]} Kg8 {[%emt 0:00:36]} 41. Kf3 {[%emt 0:30:02]} Kf7 {[%emt 0:30:30]} 42. h4 {[%emt 0:00:52]} Ke6 {[%emt 0:01:38]} 43. Kf4 {[%emt 0:02:19]} Ne5 {[%emt 0:02:47]} 44. h5 {[%emt 0:00:00]} Nd3+ {[%emt 0:00:00]} 45. Ke3 {[%emt 0:00:00]} Ne5 {[%emt 0:00:00]} 46. Kd4 {[%emt 0:00:00]} Nf3+ {[%emt 0:00:00]} 47. Kc5 {[%emt 0:00:00]} Kd7 {[%emt 0:00:00]} 48. Nd6 {[%emt 0:00:00]} Ne5 {[%emt 0:00:00]} 49. Nf5 {[%emt 0:00:00]} Nd3+ {[%emt 0:00:00]} 50. Kb6 {[%emt 0:00:00]} Nxf2 {[%emt 0:00:00]} 51. c4 {[%emt 0:00:00]} Ne4 {[%emt 0:00:00]} 52. g4 {[%emt 0:00:00]} Nf6 {[%emt 0:00:00]} 53. Nxg7 {[%emt 0:00:00]} Nxg4 {[%emt 0:00:00]} 54. Nf5 {[%emt 0:00:00]} Nf6 {[%emt 0:00:00]} 55. Nxh6 {[%emt 0:00:00]} Nxh5 {[%emt 0:00:00]} 56. Nf7 {[%emt 0:00:00]} Nf6 {[%emt 0:00:00]} 57. Ne5+ {[%emt 0:00:10]} Kd6 {[%emt 0:00:00]} 58. Nxc6 {[%emt 0:03:59]} Nd7+ {[%emt 0:00:00]} 59. Kb7 {[%emt 0:00:36]} Kc5 {[%emt 0:00:00]} 60. Na5 {[%emt 0:00:36]} Ne5 {[%emt 0:00:00]} 61. Kc7 {[%emt 0:00:32]} Nxc4 {[%emt 0:00:00]} 62. Nxc4 {[%emt 0:00:02]} Kd4 {[%emt 0:00:00]} 1/2-1/2

[Event "FIJ Cannes 2024"]
[Site "Cannes"]
[Date "2024.02.22"]
[Round "6.1"]
[White "Sasikiran, Krishnan"]
[Black "Puranik, Abhimanyu"]
[Result "1/2-1/2"]
[ECO "C78"]
[WhiteElo "2586"]
[BlackElo "2645"]
[Annotator "TA"]
[PlyCount "139"]
[EventDate "2024.02.20"]
[EventType "swiss"]
[EventCountry "FRA"]
[SourceTitle "playchess.com"]
[Source "ChessBase"]
[SourceQuality "1"]
[TimeControl "40/5400+30:1800+30"]

{[%evp 56,139,167,178,196,175,203,136,256,243,288,191,165,101,102,108,108,102,102,98,100,84,102,94,90,71,78,77,78,75,70,64,70,64,74,72,80,67,84,72,83,76,76,76,77,66,77,68,76,76,77,77,97,77,85,71,78,77,70,0,69,0,68,58,58,56,56,8,8,8,45,45,45,0,0,0,0,0,0,0,0,0,0,0,0,0]} 1. e4 {[%emt 0:03:03]} e5 {[%emt 0:00:15]} 2. Nf3 {[%emt 0:00:13]} Nc6 {[%emt 0:00:06]} 3. Bb5 {[%emt 0:00:19]} a6 {[%emt 0:00:32]} 4. Ba4 {[%emt 0:00:08]} Nf6 {[%emt 0:00:06]} 5. O-O {[%emt 0:00:15]} b5 {[%emt 0:01:00]} 6. Bb3 {[%emt 0:00:09]} Bc5 {[%emt 0:00:03]} 7. a4 {[%emt 0:01:51]} Bb7 {[%emt 0:01:27]} 8. d3 {[%emt 0:05:53]} O-O {[%emt 0:00:28]} 9. Nc3 {[%emt 0:01:45]} Na5 {[%emt 0:02:59]} 10. Ba2 {[%emt 0:03:29] C78: Ruy Lopez: Archangelsk and Möller Defences.} b4 {[%emt 0:00:36]} 11. Ne2 {[%emt 0:00:58]} d5 {[%emt 0:05:14]} 12. Nxe5 {[%emt 0:03:21] 12.exd5 is the modern continuation.} dxe4 {[%emt 0:09:28]} 13. d4 {[%emt 0:04:47]} Bd6 {[%emt 0:15:34]} 14. Bg5 {[%emt 0:08:37]} c5 {[%emt 0:00:31]} 15. c3 $146 {[%emt 0:07:31]} ({Predecessor:} 15. Ng3 h6 16. Bxf6 Qxf6 17. Nd7 Qxd4 18. Nf5 Qxd1 19. Raxd1 Bf4 20. g3 Bg5 21. h4 {1-0 Nikolov,M (2387)-Kuzmanov,S (2218) Grigorov Memorial 3rd 2004 (3.5)}) 15... bxc3 {[%emt 0:10:02]} 16. bxc3 {[%emt 0:02:32]} Qc7 {[%emt 0:02:22]} 17. Bxf6 {[%emt 0:12:24]} gxf6 {[%emt 0:00:05]} 18. Ng4 {[%emt 0:00:09]} Kh8 {[%emt 0:00:06]} 19. Ng3 {[%emt 0:03:21]} Rg8 {[%emt 0:19:54]} 20. Nh6 {[%emt 0:05:11]} Rg7 {[%emt 0:00:03]} 21. Qh5 {[%emt 0:02:46]} Rf8 {[%emt 0:02:44]} 22. Rae1 {[%emt 0:05:37]} Bf4 {[%emt 0:01:37]} 23. Nxe4 {[%emt 0:07:39]} Bxh6 {[%emt 0:05:01]} 24. Qxh6 {[%emt 0:02:00]} cxd4 {[%emt 0:02:30]} 25. cxd4 {[%emt 0:07:28]} f5 {[%emt 0:00:36]} 26. Ng3 {[%emt 0:05:19]} f4 {[%emt 0:02:08]} 27. Ne4 {[%emt 0:00:32]} Qd7 {[%emt 0:14:31]} 28. d5 {[%emt 0:04:01]} Bxd5 {[%emt 0:02:41]} 29. Bxd5 {[%emt 0:01:11]} (29. Qxa6 {gets mated.} Qh3) 29... Qxd5 {[%emt 0:00:01]} 30. Qxf4 {[%emt 0:00:52]} ({And not} 30. Qxa6 f5 31. Qd6 Qa8 32. Qxf4 fxe4 33. Qxe4 Nc4 34. Qxa8 Rxa8 $15) 30... Qd4 {[%emt 0:00:11]} 31. Qd6 {[%emt 0:01:22]} Rd8 {[%emt 0:01:20]} (31... Qxd6 $16 32. Nxd6 Rg6) 32. Qxa6 $18 {[%emt 0:01:02]} Qxa4 {[%emt 0:00:37]} 33. Qf6 {[%emt 0:00:38]} Qd4 {[%emt 0:00:54]} 34. Qxd4 {[%emt 0:00:30]} (34. Qf3 $18 {Threatens to win with Rd1.} Nc6 35. Ng3) 34... Rxd4 $16 {[%emt 0:00:03]} 35. Nf6 {[%emt 0:00:29]} Rg5 {[%emt 0:00:51]} 36. Re8+ {[%emt 0:00:28]} Kg7 {[%emt 0:00:02]} 37. Ne4 {[%emt 0:00:09]} Rgd5 {[%emt 0:00:13]} 38. Ng3 {[%emt 0:00:28]} Nc4 {[%emt 0:00:33]} 39. h3 {[%emt 0:00:35]} h5 {[%emt 0:02:00]} 40. Rfe1 {[%emt 0:00:36]} h4 {[%emt 0:00:16]} 41. Ne2 {[%emt 0:30:34]} Rd1 {[%emt 0:30:21]} 42. Nc3 {[%emt 0:00:00]} Rxe1+ {[%emt 0:00:00]} 43. Rxe1 {[%emt 0:00:00]} Rd3 {[%emt 0:00:00]} 44. Ne2 {[%emt 0:00:00]} Nd6 {[%emt 0:00:00]} 45. Kf1 {[%emt 0:00:00]} Nf5 {[%emt 0:00:00]} 46. Rc1 {[%emt 0:00:00]} Rd6 {[%emt 0:00:00]} 47. Ng1 {[%emt 0:00:00]} Rd4 {[%emt 0:00:00]} 48. Nf3 {[%emt 0:00:00]} Ra4 {[%emt 0:00:00]} 49. Ke1 {[%emt 0:00:00]} f6 {[%emt 0:00:00]} 50. Kd2 {[%emt 0:00:00]} Kg6 {[%emt 0:00:00]} 51. Rc8 {[%emt 0:00:00]} Ra2+ {[%emt 0:05:59]} 52. Rc2 {[%emt 0:00:00]} Ra4 {[%emt 0:00:00]} 53. Kc3 {[%emt 0:00:00]} Ra1 {[%emt 0:00:00]} 54. Rd2 {[%emt 0:00:00]} Ra4 {[%emt 0:00:00]} 55. Re2 {[%emt 0:00:00]} Kf7 {[%emt 0:00:00]} 56. Kb3 {[%emt 0:01:18]} Rf4 {[%emt 0:00:00]} 57. Kc3 {[%emt 0:02:00]} Ra4 {[%emt 0:00:00]} 58. Kb3 {[%emt 0:00:12]} Rf4 {[%emt 0:00:00]} 59. Ra2 {[%emt 0:00:04]} Nd4+ {[%emt 0:00:00]} 60. Nxd4 {[%emt 0:00:10]} Rxd4 {[%emt 0:00:00]} 61. Ra4 {[%emt 0:00:47]} (61. Kc3 $14 {feels stronger.} Rd1 62. f3) 61... Rd2 {[%emt 0:00:00]} 62. Rf4 {[%emt 0:00:13]} Kg6 {[%emt 0:00:00]} 63. Kc3 {[%emt 0:00:07]} Ra2 {[%emt 0:00:00]} 64. Kd3 {[%emt 0:00:15]} f5 {[%emt 0:00:00]} 65. Ke3 {[%emt 0:01:27]} Ra3+ $1 {[%emt 0:00:00]} 66. Ke2 {[%emt 0:00:07]} Ra2+ {[%emt 0:00:00]} 67. Ke1 {[%emt 0:00:11]} Ra1+ $1 {[%emt 0:00:00]} 68. Ke2 {[%emt 0:00:06]} Ra2+ {[%emt 0:00:00]} 69. Kf1 {[%emt 0:00:13]} Ra1+ $1 {[%emt 0:00:00]} 70. Ke2 {[%emt 0:00:03]} 1/2-1/2